bitfinex/quotes_ETHUSD_20251015
["timestamp","ask_amount","ask_price","bid_price","bid_amount"]
[1760494181603,9.52119767,4119.9,4119.8,0.002]
[1760494182011,9.14049381,4119.9,4119.8,0.002]
[1760494184101,9.52118115,4119.9,4119.8,0.002]
[1760494185327,11.70918115,4119.9,4119.8,0.002]
[1760494187400,15.96170025,4119.9,4119.8,0.002]
[1760494187600,16.05908676,4119.9,4119.8,0.002]
[1760494188010,12.04048676,4119.9,4119.8,0.002]
[1760494188235,0.38068734,4119.9,4119.8,0.002]
[1760494188434,0.38068734,4119.9,4119.8,2.42930229]
[1760494188634,0.1208,4120.1,4120.0,2.42718446]
[1760494188834,2.5938,4120.1,4120.0,2.42718446]
[1760494190441,2.5938,4120.1,4119.8,2.42926846]
[1760494190613,2.5938,4120.1,4119.8,3.09764722]
[1760494191642,2.5938,4120.1,4119.9,2.4272407]
[1760494192426,2.472,4120.0,4119.9,2.4272407]
[1760494194639,2.472,4120.0,4119.8,3.09767618]
[1760494195345,2.188,4119.9,4119.8,3.09767618]
[1760494198025,2.188,4119.9,4119.8,2.42929742]
[1760494198233,2.188,4119.9,4119.8,0.002]
[1760494200752,0.1208,4120.1,4119.8,0.002]
[1760494200953,2.472,4119.9,4119.8,0.002]
[1760494201552,3.5653,4119.9,4119.8,0.002]
[1760494201749,6.34907337,4119.9,4119.8,0.002]
[1760494204253,8.26907337,4119.9,4119.8,0.002]
[1760494204446,8.36645893,4119.9,4119.8,0.002]
[1760494205235,10.55445893,4119.9,4119.8,0.002]
[1760494205436,10.93516888,4119.9,4119.8,0.002]
[1760494207067,6.27516888,4119.9,4119.8,0.002]
[1760494207368,8.74616888,4119.9,4119.8,0.002]
[1760494207664,2.93430995,4119.9,4119.8,0.002]
[1760494207863,0.38070995,4119.9,4119.8,0.002]
[1760494208065,0.001,4120.1,4119.8,2.42930229]
[1760494208264,0.001,4120.1,4120.0,2.42718446]
[1760494208436,0.359,4120.1,4120.0,2.42718446]
[1760494208638,0.001,4120.1,4120.0,2.91303314]
[1760494208860,0.359,4120.1,4120.0,2.91303314]
[1760494209250,0.001,4120.1,4120.0,2.91303314]
[1760494209450,2.472,4120.1,4120.0,2.91303314]
[1760494211565,2.472,4120.1,4120.0,0.60664868]
[1760494211766,2.472,4120.1,4120.0,2.54798446]
[1760494213402,0.001,4120.1,4120.0,2.54798446]
[1760494213572,2.472,4120.1,4120.0,2.5722563]
[1760494213768,2.472,4120.1,4120.0,2.54798446]
[1760494214701,0.001,4120.1,4120.0,2.54798446]
[1760494214911,2.472,4120.1,4120.0,3.04591252]
[1760494215066,0.001,4120.1,4120.0,3.04591252]
[1760494215265,4.66,4120.1,4120.0,3.04591252]
[1760494217665,0.001,4120.1,4120.0,3.04591252]
[1760494217865,2.472,4120.1,4120.0,3.04591252]
[1760494218199,0.001,4120.1,4120.0,3.04591252]
[1760494218497,2.472,4120.1,4120.0,3.04591252]
[1760494220597,0.001,4120.1,4120.0,3.04591252]
[1760494220904,2.471,4120.1,4120.0,3.04591252]
[1760494225413,4.659,4120.1,4120.0,3.04591252]
[1760494225614,3.565,4120.1,4120.0,0.1208]
[1760494225914,2.9381,4120.1,4119.8,0.002]
[1760494227901,0.001,4120.1,4119.8,0.002]
[1760494228076,2.9371,4120.0,4119.8,0.002]
[1760494228277,0.4671,4119.9,4119.8,0.002]
[1760494229019,0.4671,4119.9,4119.8,2.42930229]
[1760494229213,2.47,4120.0,4119.9,2.42724337]
[1760494229511,2.9371,4120.0,4119.8,0.002]
[1760494229812,0.4671,4119.9,4119.8,0.002]
[1760494231675,2.9371,4119.9,4119.8,0.002]
[1760494234233,0.4671,4119.9,4119.8,2.42930229]
[1760494234436,0.001,4120.1,4120.0,2.42718446]
[1760494234622,2.471,4120.1,4120.0,2.42718446]
[1760494234827,2.9381,4120.1,4120.0,2.42718446]
[1760494235138,0.001,4120.1,4120.0,2.42718446]
[1760494235320,4.659,4120.1,4120.0,2.42718446]
[1760494236133,5.1261,4120.1,4120.0,2.42718446]
[1760494236339,2.189,4120.1,4120.0,2.42718446]
[1760494236501,2.471,4120.1,4120.0,2.42718446]
[1760494237132,2.471,4120.1,4120.0,2.54798446]
[1760494237647,0.001,4120.1,4120.0,3.04590911]
[1760494237816,2.471,4120.1,4120.0,3.04590911]
[1760494240562,2.471,4120.1,4120.0,3.04790911]
[1760494240785,2.471,4120.1,4120.0,0.1228]
[1760494240980,2.9234,4120.1,4120.0,0.002]
[1760494241261,4.8434,4120.1,4120.0,0.002]
[1760494243764,4.39,4120.1,4120.0,0.002]
[1760494243968,4.8424,4120.1,4120.0,0.002]
[1760494244162,2.47,4120.1,4120.0,2.42918446]
[1760494244664,2.47,4120.1,4120.0,2.54998446]
[1760494244862,2.47,4120.1,4120.0,3.03602918]
[1760494245246,4.658,4120.1,4120.0,2.54998446]
[1760494246839,4.658,4120.1,4120.0,0.1228]
[1760494246840,5.1104,4120.1,4120.0,0.1228]
[1760494247039,4.0164,4120.1,4120.0,0.002]
[1760494247260,3.5668376,4120.1,4120.0,0.002]
[1760494247465,2.9224,4120.1,4120.0,2.42918446]
[1760494247659,2.9224,4120.1,4120.0,0.002]
[1760494250485,0.001,4120.1,4120.0,2.42918446]
[1760494250668,2.9224,4120.1,4120.0,0.002]
[1760494251178,3.0432,4120.1,4120.0,0.002]
[1760494251961,0.001,4120.1,4120.0,2.42918446]
[1760494252283,2.47,4120.1,4120.0,3.03845071]
[1760494252684,0.001,4120.1,4120.0,3.03845071]
[1760494252887,0.001,4120.1,4120.0,3.06272255]
[1760494253091,0.336,4120.1,4120.0,3.03845071]
[1760494255262,2.524,4120.1,4120.0,3.03845071]
[1760494255878,1.095,4120.1,4120.0,3.03845071]
[1760494256062,3.564,4120.1,4120.0,3.03845071]
[1760494257490,2.47,4120.1,4120.0,3.03845071]
[1760494258464,2.9341,4120.1,4119.8,0.002]
[1760494258668,0.6336,4120.0,4119.5,0.002]
[1760494258863,3.06078879,4120.0,4119.5,0.002]
[1760494259278,0.4641,4119.9,4119.5,0.002]
[1760494259473,0.59948888,4119.8,4119.5,0.002]
[1760494259674,2.468,4119.7,4119.5,0.002]
[1760494259879,2.9321,4119.7,4119.5,0.002]
[1760494260264,0.4641,4120.0,4119.5,0.002]
[1760494260464,0.001,4120.1,4119.5,0.002]
[1760494260877,0.001,4120.1,4120.0,2.42718446]
[1760494261077,1.109,4120.1,4120.0,2.4514563]
[1760494261481,1.109,4120.1,4120.0,2.42718446]
[1760494263504,1.109,4120.1,4119.6,2.42742013]
[1760494263505,1.109,4120.1,4119.5,0.002]
[1760494263673,0.6336,4118.8,4117.7,2.42853698]
[1760494263871,0.6336,4118.8,4117.5,2.42865027]
[1760494263872,0.2168,4118.0,4117.5,2.42865027]
[1760494264076,2.9431,4117.9,4117.4,2.4286584]
[1760494264271,0.4641,4117.8,4116.2,2.42942519]
[1760494264499,0.4641,4117.8,4116.6,2.42915398]
[1760494264705,0.4641,4117.8,4117.4,2.42869056]
[1760494264907,0.4641,4117.7,4117.4,2.42869056]
[1760494265279,2.6521,4117.6,4117.5,2.42861467]
[1760494266181,2.07121,4117.6,4113.9,2.556]
[1760494266375,3.0177,4117.5,4112.0,2.63826997]
[1760494266602,3.0177,4117.5,4113.3,0.12701332]
[1760494266603,0.6336,4117.3,4113.3,0.12701332]
[1760494266804,2.9431,4117.2,4116.6,2.42913649]
[1760494267004,0.2168,4117.1,4115.3,2.42991879]
[1760494267303,1.92,4116.9,4115.4,0.26729085]
[1760494267497,1.92,4116.9,4116.8,2.42907112]
[1760494267687,2.1368,4116.9,4116.8,2.42907112]
[1760494268595,0.2168,4116.9,4116.8,2.42907112]
[1760494268905,2.6958,4116.9,4116.8,2.42907112]
[1760494269894,0.2168,4116.9,4116.8,2.42907112]
[1760494270094,0.3376,4117.1,4117.0,2.42895312]
[1760494270379,2.8166,4117.1,4117.0,2.42895312]
[1760494270586,4.398,4117.1,4117.0,2.42895312]
[1760494271886,4.8581,4117.1,4117.0,2.42895312]
[1760494272303,4.398,4117.1,4117.0,2.42895312]
[1760494273106,4.8581,4117.1,4117.0,2.42895312]
[1760494273307,2.3801,4117.1,4117.0,2.42895312]
[1760494273488,4.8581,4117.1,4117.0,2.42895312]
[1760494274896,4.398,4117.1,4117.0,2.42895312]
[1760494275297,7.0461,4117.1,4117.0,2.42895312]
[1760494277023,6.586,4117.1,4117.0,2.42895312]
[1760494277730,0.1208,4117.6,4117.3,2.42877613]
[1760494277898,2.354,4117.5,4117.4,2.42871715]
[1760494278120,2.354,4117.5,4117.4,2.54951715]
[1760494278539,2.477,4117.5,4117.4,0.1208]
[1760494278749,2.477,4117.5,4117.4,2.54951715]
[1760494279048,2.477,4117.5,4117.4,3.04734457]
[1760494279614,0.1208,4118.5,4117.5,2.42865816]
[1760494279815,0.001,4118.8,4118.7,2.42795056]
[1760494280040,2.479,4118.8,4118.7,2.42795056]
[1760494280244,2.479,4118.8,4118.7,2.45223006]
[1760494280417,2.479,4118.8,4118.7,3.18306878]
[1760494280829,2.479,4118.8,4118.7,3.15878928]
[1760494281229,2.478,4118.8,4118.7,3.15878928]
[1760494281549,0.001,4118.8,4118.7,3.18306878]
[1760494281766,0.4611,4120.1,4119.2,2.42765585]
[1760494281962,0.001,4120.1,4119.2,2.91319521]
[1760494282127,0.6906,4120.0,4119.2,2.91319521]
[1760494282952,0.841,4119.3,4119.2,2.91319521]
[1760494284050,0.001,4119.3,4119.2,2.91319521]
[1760494284267,1e-08,4120.3,4119.2,0.50981591]
[1760494284420,1e-08,4120.3,4120.2,2.42706664]
[1760494284618,1e-08,4120.3,4120.2,2.93675889]
[1760494284956,0.001,4121.0,4120.9,2.42665437]
[1760494285250,0.4611,4122.2,4121.5,2.4263011]
[1760494285451,0.001,4122.2,4122.0,2.42600679]
[1760494285689,0.001,4122.2,4122.0,2.45026685]
[1760494285896,0.001,4122.2,4122.0,2.93790274]
[1760494286058,0.001,4122.7,4122.4,2.42577139]
[1760494286258,1e-08,4122.7,4122.6,2.42565371]
[1760494286488,1e-08,4122.7,4122.6,2.44991024]
[1760494286992,1e-08,4122.7,4122.6,2.42565371]
[1760494287289,1e-08,4122.7,4122.6,2.93504687]
[1760494287488,0.001,4123.6,4123.1,2.42535955]
[1760494287653,0.001,4123.6,4123.1,2.44961314]
[1760494288362,0.001,4123.6,4123.1,2.42535955]
[1760494288567,0.001,4123.6,4123.1,2.44961314]
[1760494288766,0.001,4123.6,4123.1,2.93711918]
[1760494289492,0.001,4123.6,4123.1,5.49071918]
[1760494289792,0.2305,4125.3,4124.8,2.42435996]
[1760494290165,0.2305,4125.3,4124.8,2.54515996]
[1760494290359,0.2305,4125.3,4124.8,3.04212067]
[1760494290859,0.2315,4124.9,4124.8,3.04212067]
[1760494291191,0.001,4124.9,4124.8,3.04212067]
[1760494291482,0.931,4124.9,4124.8,3.04212067]
[1760494291658,1.1615,4124.9,4124.8,3.04212067]
[1760494294711,1.6216,4124.9,4124.8,2.54515996]
[1760494295064,1.6216,4124.9,4124.8,0.1208]
[1760494295264,3.8076,4124.9,4124.7,2.42440135]
[1760494295514,0.4601,4124.8,4124.5,2.54528001]
[1760494295679,3.3475,4124.9,4124.5,2.54528001]
[1760494295680,0.4601,4124.7,4124.6,2.42447599]
[1760494296003,3.3475,4124.9,4124.6,2.42447752]
[1760494296297,0.2315,4124.9,4124.8,2.54515996]
[1760494296513,3.1656,4124.9,4124.8,2.54515996]
[1760494297001,2.7055,4124.9,4124.8,2.54515996]
[1760494297302,2.474,4124.9,4124.8,3.04212371]
[1760494297499,0.001,4124.9,4124.8,3.04212371]
[1760494297667,2.475,4124.9,4124.8,3.0663673]
[1760494297863,2.475,4124.9,4124.8,3.04212371]
[1760494298091,2.7055,4124.9,4124.8,3.04212371]
[1760494298372,3.1656,4124.9,4124.8,3.04212371]
[1760494298879,2.7055,4124.9,4124.8,3.04212371]
[1760494299286,2.474,4124.9,4124.8,3.04212371]
[1760494300694,0.001,4124.9,4124.8,3.04212371]
[1760494300896,2.473,4124.9,4124.8,3.04212371]
[1760494305400,4.657,4124.9,4124.8,3.04212371]
[1760494307730,4.657,4124.9,4123.5,2.42508812]
[1760494307731,3.1709,4124.9,4123.2,2.42525721]
[1760494307883,2.7066,4124.9,4124.8,2.42435996]
[1760494308530,0.2346,4124.9,4124.8,2.42435996]
[1760494308728,0.2346,4124.9,4124.8,2.44860355]
[1760494308927,2.7036,4124.9,4124.8,2.44860355]
[1760494309123,3.1679,4124.9,4124.8,2.42435996]
[1760494311048,3.1679,4124.9,4124.1,2.42475759]
[1760494311230,0.4643,4124.8,4123.3,2.42524191]
[1760494311543,3.02039,4124.9,4124.6,2.42447752]
[1760494311544,0.4643,4124.7,4124.6,2.42447752]
[1760494313214,0.2346,4124.9,4124.8,2.42435996]
[1760494313535,5.0915,4124.9,4124.8,2.42435996]
[1760494313740,0.2346,4124.9,4124.8,2.42435996]
[1760494313941,2.47,4124.9,4124.8,2.93348337]
[1760494314152,2.47,4124.9,4124.8,2.90923978]
[1760494314317,3.1753,4124.9,4124.8,2.90923978]
[1760494314955,0.2374,4124.9,4124.8,2.42435996]
[1760494315247,4.654,4124.9,4124.8,2.42435996]
[1760494315410,3.561,4124.9,4124.8,2.42435996]
[1760494316434,3.561,4124.9,4122.7,0.002]
[1760494316435,2.7054,4124.9,4122.7,0.002]
[1760494316617,13.4989412,4124.5,4123.7,2.42500666]
[1760494316812,0.2374,4124.9,4123.8,0.02424947]
[1760494317246,2.9389,4124.8,4124.7,2.42441874]
[1760494317845,0.2374,4124.9,4124.8,2.42435996]
[1760494318016,2.471,4124.9,4124.8,2.42435996]
[1760494318340,2.471,4124.9,4124.8,3.16376788]
[1760494318550,3.1763,4124.9,4124.8,2.42435996]
[1760494319715,0.7063,4124.9,4124.8,2.42435996]
[1760494320045,2.7084,4124.9,4124.8,2.42435996]
[1760494320220,3.1773,4124.9,4124.8,2.42435996]
[1760494321656,0.001,4124.9,4124.8,2.42435996]
[1760494321818,0.001,4124.9,4124.8,2.92132321]
[1760494322015,0.001,4124.9,4124.8,2.9455668]
[1760494322264,1.047,4124.9,4124.8,2.9455668]
[1760494322461,1.047,4124.9,4124.8,2.92132321]
[1760494323528,15.2512412,4124.9,4122.8,2.42549211]
[1760494323762,1.92,4124.8,4124.5,2.42453087]
[1760494323925,2.9409,4124.7,4123.9,2.42488906]
[1760494324262,1.92,4124.6,4123.3,2.42521789]
[1760494324434,0.4689,4124.6,4122.9,2.44972985]
[1760494324770,0.4689,4124.6,4123.7,2.42500666]
[1760494324973,2.472,4124.7,4123.7,2.42500666]
[1760494325133,0.4689,4124.5,4124.4,2.4245782]
[1760494325335,2.6529,4124.5,4124.4,2.4245782]
[1760494325535,1.5609,4124.5,4124.4,2.4245782]
[1760494326231,1.5609,4124.5,4122.9,2.42547508]
[1760494326432,1.5609,4124.5,4124.2,2.42468023]
[1760494326645,0.4689,4124.4,4124.2,2.42468023]
[1760494326912,0.4689,4124.4,4123.2,2.42525246]
[1760494327069,0.4689,4124.4,4124.0,2.4247824]
[1760494327233,2.472,4124.7,4124.0,2.4247824]
[1760494327432,0.4689,4124.3,4124.1,2.42477054]
[1760494327733,0.4689,4124.3,4122.7,0.002]
[1760494327734,1.92,4124.1,4122.7,0.002]
[1760494328076,0.2364,4123.7,4123.4,2.4251389]
[1760494328382,4.6274,4123.7,4122.7,0.002]
[1760494328670,4.6274,4123.7,4123.2,2.4252976]
[1760494328877,5.0963,4123.7,4123.1,2.42730307]
[1760494329069,5.0963,4123.7,4123.2,2.42527226]
[1760494329282,5.0963,4123.7,4123.4,2.42515351]
[1760494329574,2.42437022,4124.8,4123.1,0.002]
[1760494329575,0.4689,4124.2,4124.1,2.42477146]
[1760494329730,4.8599,4124.2,4123.6,0.24714059]
[1760494329929,0.2374,4123.7,4123.6,2.42706547]
[1760494330157,3.164,4123.7,4123.6,0.002]
[1760494330459,3.164,4123.7,4123.6,2.42706547]
[1760494331050,0.693,4123.7,4123.6,2.42706547]
[1760494331234,3.165,4123.7,4123.6,2.42706547]
[1760494332164,3.165,4123.7,4123.6,0.002]
[1760494332532,5.084,4123.7,4123.6,2.42706547]
[1760494333652,0.5764,4124.2,4124.0,2.42480798]
[1760494333836,4.8466,4124.1,4123.9,2.42487867]
[1760494334030,0.4556,4124.0,4123.9,2.42487867]
[1760494335367,4.5616,4124.0,4123.6,0.002]
[1760494335675,0.2374,4123.7,4123.6,0.002]
[1760494335838,4.6284,4123.7,4123.6,0.002]
[1760494336033,5.084,4123.7,4123.6,0.002]
[1760494336236,2.613,4123.7,4123.6,0.002]
[1760494336434,2.1574,4123.7,4123.6,2.42706547]
[1760494336652,0.4556,4124.1,4123.9,2.4248814]
[1760494336851,4.391,4124.0,4123.9,2.4248814]
[1760494337053,2.471,4124.0,4123.9,2.4248814]
[1760494337454,0.1208,4124.2,4124.0,2.42483026]
[1760494337663,0.4566,4124.7,4124.3,2.42459694]
[1760494337958,3.0474,4124.6,4124.3,2.42459694]
[1760494338160,2.471,4124.5,4124.4,2.42459509]
[1760494338473,0.001,4124.7,4124.5,2.4245363]
[1760494338677,2.471,4124.6,4124.5,2.4245363]
[1760494339337,4.8466,4124.6,4124.5,2.4245363]
[1760494339741,4.391,4124.6,4124.5,2.4245363]
[1760494341438,0.001,4124.7,4124.6,2.42447752]
[1760494341769,2.471,4124.7,4124.6,3.16392049]
[1760494342374,0.001,4124.7,4124.6,3.18816526]
[1760494342581,0.001,4124.7,4124.6,3.30896526]
[1760494342883,2.471,4124.7,4124.6,3.28472049]
[1760494343579,0.001,4124.9,4124.8,2.42435996]
[1760494343784,0.001,4124.9,4124.8,3.23772164]
[1760494344748,0.918,4124.9,4124.8,3.26196523]
[1760494344949,0.918,4124.9,4124.8,3.23772164]
[1760494345148,0.001,4124.9,4124.8,3.23772164]
[1760494345350,2.809,4124.9,4124.8,3.23772164]
[1760494347248,2.47,4124.9,4124.8,3.23772164]
[1760494350962,2.7074,4124.9,4124.8,2.42435996]
[1760494351153,2.7074,4124.9,4124.6,0.1208]
[1760494351154,3.163,4124.9,4124.6,0.1208]
[1760494351500,3.163,4124.9,4124.6,2.54527152]
[1760494351501,0.4556,4124.8,4124.6,2.54527152]
[1760494351965,0.4556,4124.7,4124.6,2.54527752]
[1760494355058,0.001,4124.9,4124.6,0.1208]
[1760494355371,4.651,4124.8,4124.7,2.67895712]
[1760494355576,3.559,4124.8,4124.7,2.67895712]
[1760494355761,3.559,4124.8,4124.7,2.42441874]
[1760494356859,0.001,4124.9,4124.8,2.42435996]
[1760494357258,2.469,4124.9,4124.8,2.42435996]
[1760494357453,0.001,4124.9,4124.8,2.42435996]
[1760494357656,2.468,4124.9,4124.8,2.56940355]
[1760494357897,2.468,4124.9,4124.8,3.04454219]
[1760494359499,0.001,4125.2,4125.1,2.42418365]
[1760494359709,2.468,4125.2,4125.1,2.42418365]
[1760494360112,2.468,4125.2,4125.1,2.54498365]
[1760494360398,2.468,4125.2,4125.1,3.09184642]
[1760494361184,0.001,4125.2,4125.1,3.09184642]
[1760494361358,2.468,4125.2,4125.1,3.09184642]
[1760494361559,0.001,4125.2,4125.1,3.09184642]
[1760494361956,0.001,4125.2,4125.1,3.11608825]
[1760494362175,0.001,4125.4,4125.3,2.42406612]
[1760494362379,0.001,4125.4,4125.3,2.97565737]
[1760494363286,0.646,4125.4,4125.3,2.97565737]
[1760494364262,0.001,4125.4,4125.3,2.99989803]
[1760494364478,0.554,4125.4,4125.3,3.12069803]
[1760494364683,0.554,4125.4,4125.3,3.09645737]
[1760494364996,0.001,4125.4,4125.3,3.09645737]
[1760494365197,0.952,4125.4,4125.3,3.09645737]
[1760494365410,3.136,4125.4,4125.3,3.09645737]
[1760494368178,0.001,4125.4,4125.3,5.01645737]
[1760494368412,2.467,4125.4,4125.3,5.01645737]
[1760494373314,2.467,4125.4,4125.3,3.09645737]
[1760494374418,2.8991,4125.4,4124.6,0.002]
[1760494374582,0.2328,4124.7,4124.6,0.002]
[1760494374787,1.303,4124.7,4124.6,2.42647752]
[1760494375419,3.9191,4124.7,4124.6,2.42647752]
[1760494375589,2.8271,4124.7,4124.6,0.002]
[1760494375783,2.8271,4124.7,4124.6,2.42647752]
[1760494376084,1.7351,4124.7,4124.6,0.002]
[1760494376300,1.90861,4124.7,4124.2,2.42671092]
[1760494376501,1.303,4124.7,4124.2,2.42671092]
[1760494376690,0.4321,4124.6,4124.2,0.002]
[1760494376885,0.4321,4124.6,4124.4,2.4245925]
[1760494377087,0.4321,4124.5,4124.2,0.002]
[1760494377490,0.4321,4124.4,4124.3,2.42465388]
[1760494378108,2.471,4124.4,4124.3,2.42465388]
[1760494378308,2.9031,4124.4,4124.3,2.42465388]
[1760494378719,2.9031,4124.4,4124.3,2.90979275]
[1760494379289,2.471,4124.4,4124.3,2.90979275]
[1760494379515,2.471,4124.4,4124.3,2.42465388]
[1760494380524,0.6649,4125.3,4124.3,2.42465388]
[1760494380703,4.8231,4125.2,4124.9,2.42429114]
[1760494380908,2.3521,4125.1,4124.9,2.42429114]
[1760494381126,2.3521,4125.1,4124.6,2.4244516]
[1760494381127,0.4321,4125.1,4124.3,2.42465388]
[1760494381330,0.4321,4125.0,4124.2,0.002]
[1760494381703,0.4321,4125.0,4124.5,2.42453058]
[1760494381903,0.91441,4124.9,4124.5,2.42453058]
[1760494382105,0.4321,4124.8,4124.6,2.4244762]
[1760494382330,0.4535,4124.7,4124.6,2.4244762]
[1760494382525,2.9245,4124.7,4124.4,2.42458129]
[1760494382728,0.4535,4124.6,4124.4,2.42458129]
[1760494383254,0.4535,4124.5,4124.4,2.42458129]
[1760494384133,0.4535,4124.5,4124.3,0.002]
[1760494384508,0.4535,4124.5,4124.4,0.1208]
[1760494384704,2.47,4124.5,4124.4,0.1208]
[1760494385035,0.4535,4124.9,4124.8,2.42435996]
[1760494385222,4.0155,4124.9,4124.7,2.42436483]
[1760494385422,0.4535,4124.8,4124.7,2.42437778]
[1760494385825,0.4535,4124.8,4124.7,2.54517778]
[1760494387817,2.9235,4124.8,4124.7,2.54517778]
[1760494388925,2.9225,4124.8,4124.7,2.54517778]
[1760494389339,0.4545,4125.4,4125.2,2.42412489]
[1760494389647,2.7018,4125.3,4125.2,2.42412489]
[1760494389936,2.7018,4125.3,4125.2,2.54492489]
[1760494390307,3.1738,4125.3,4125.2,2.54492489]
[1760494392613,3.1738,4125.3,4125.2,0.1208]
[1760494392830,3.1738,4125.3,4125.2,2.54492489]
[1760494393153,0.001,4125.4,4125.3,2.42406612]
[1760494393442,2.469,4125.4,4125.3,2.42406612]
[1760494394443,0.001,4125.4,4125.3,2.42406612]
[1760494394850,2.941,4125.4,4125.3,2.42406612]
[1760494395219,4.033,4125.4,4125.3,2.42406612]
[1760494395413,5.125,4125.4,4125.3,2.42406612]
[1760494395615,4.033,4125.4,4125.3,2.42406612]
[1760494397552,3.561,4125.4,4125.3,2.42406612]
[1760494397722,2.468,4125.4,4125.3,2.42406612]
[1760494398281,2.94,4125.4,4125.3,2.42406612]
[1760494398848,0.001,4125.4,4125.3,2.42406612]
[1760494399045,0.001,4125.4,4125.3,2.9209701]
[1760494399222,2.468,4125.4,4125.3,2.9209701]
[1760494400350,0.001,4125.4,4125.3,2.9209701]
[1760494400649,0.769,4125.4,4125.3,3.0417701]
[1760494401529,0.001,4125.9,4125.4,2.42400736]
[1760494401752,0.001,4125.9,4125.5,0.02423948]
[1760494401933,1e-08,4126.3,4126.2,2.42353739]
[1760494402125,1e-08,4126.3,4126.2,2.44777276]
[1760494402629,1e-08,4126.3,4126.2,2.42353739]
[1760494402844,0.2374,4127.4,4127.3,2.42289147]
[1760494403341,0.472,4127.7,4127.6,2.42271537]
[1760494403661,2.1383,4129.0,4128.3,2.42230458]
[1760494403662,0.2183,4128.4,4128.3,2.42230458]
[1760494403854,0.6903,4128.4,4128.3,2.42230458]
[1760494404363,0.2183,4128.4,4128.3,2.42230458]
[1760494404582,0.472,4128.8,4128.7,2.4220699]
[1760494404724,1.792,4128.8,4128.7,2.4220699]
[1760494404926,2.938,4128.8,4128.7,2.4220699]
[1760494405126,2.938,4128.8,4125.6,0.6336]
[1760494405329,2.938,4128.8,4125.1,2.42414772]
[1760494405330,4.576,4128.7,4126.4,2.42341993]
[1760494405631,4.576,4128.7,4128.2,2.42233882]
[1760494405632,0.472,4128.6,4128.2,2.42233882]
[1760494405832,0.472,4128.5,4126.9,0.02423126]
[1760494406047,0.472,4128.5,4128.1,2.42238859]
[1760494406252,4.104,4128.7,4128.2,0.02422363]
[1760494406439,0.472,4128.4,4128.3,2.42230458]
[1760494406833,4.104,4128.7,4128.6,2.42212856]
[1760494407040,4.104,4128.7,4127.8,2.42259556]
[1760494407364,0.2183,4127.9,4127.8,2.42259799]
[1760494407551,3.1563,4127.9,4127.8,2.42259799]
[1760494408452,3.1563,4127.9,4126.1,1.92]
[1760494408652,3.1563,4127.9,4127.8,2.42259799]
[1760494411150,2.466,4127.9,4127.8,2.42259799]
[1760494411351,2.466,4127.9,4127.8,2.44682396]
[1760494411672,2.466,4127.9,4127.8,2.42259799]
[1760494411875,2.466,4127.9,4127.8,2.54339799]
[1760494412170,2.466,4127.9,4127.8,3.04000587]
[1760494413141,0.2183,4129.0,4128.9,2.42195257]
[1760494413437,0.472,4129.7,4129.5,2.42154472]
[1760494413751,0.472,4129.6,4129.4,2.42164529]
[1760494413956,0.2183,4130.0,4129.6,2.42153932]
[1760494414162,2.466,4129.9,4129.6,2.42153932]
[1760494414338,4.386,4129.9,4129.6,2.42153932]
[1760494414542,0.472,4129.8,4129.1,2.42177941]
[1760494414738,0.472,4129.7,4129.2,2.42172509]
[1760494414968,4.386,4129.9,4129.3,2.42171712]
[1760494415267,0.472,4129.6,4129.2,2.42176848]
[1760494415474,0.472,4129.5,4129.2,2.42176848]
[1760494415673,4.385,4129.4,4129.2,2.42176848]
[1760494415870,0.472,4129.3,4129.0,2.42189243]
[1760494416173,2.465,4129.4,4129.3,2.42171796]
[1760494416562,4.857,4129.4,4129.3,2.42171796]
[1760494416943,4.385,4129.4,4129.3,2.42171796]
[1760494417349,2.465,4129.4,4129.3,2.42171796]
[1760494418466,2.466,4129.4,4129.3,2.42171796]
[1760494420145,2.466,4129.4,4129.3,2.90606968]
[1760494420146,0.001,4129.4,4129.3,2.90606968]
[1760494420346,0.001,4129.4,4129.3,2.93028685]
[1760494420576,0.001,4130.3,4130.2,2.42119025]
[1760494420964,0.003,4131.7,4130.2,2.44540215]
[1760494421144,1e-08,4131.7,4131.5,2.42042841]
[1760494421344,1e-08,4131.7,4131.5,0.02420428]
[1760494421567,1e-08,4131.7,4130.0,1.92]
[1760494421776,0.592,4131.6,4131.5,2.42042841]
[1760494422152,1e-08,4131.7,4131.6,2.42036983]
[1760494422353,0.51700001,4131.7,4131.6,2.42036983]
[1760494423372,0.51700001,4131.7,4131.6,2.82406927]
[1760494423373,1.29300001,4131.7,4131.6,2.82406927]
[1760494423671,1.29300001,4131.7,4131.6,2.94486927]
[1760494424278,0.4377,4132.7,4132.1,2.42005086]
[1760494424987,0.4407,4132.4,4132.1,2.42005086]
[1760494425355,1.5287,4132.3,4131.6,0.40369944]
[1760494425554,2.473,4132.2,4132.0,2.42008861]
[1760494425756,0.4377,4132.1,4129.5,1.92]
[1760494425956,0.4377,4132.1,4129.6,0.65781542]
[1760494426157,0.4377,4132.1,4131.9,2.42018315]
[1760494426384,0.4377,4132.0,4130.4,2.42107301]
[1760494426589,0.4377,4132.0,4131.9,2.42019409]
[1760494426959,2.473,4132.2,4132.1,2.42007695]
[1760494428194,2.9107,4132.2,4130.6,1.92]
[1760494428394,2.9107,4132.2,4132.1,2.42007695]
[1760494428556,2.9107,4132.2,4130.5,0.2421073]
[1760494428764,2.9107,4132.2,4130.7,1.92]
[1760494428974,2.9107,4132.2,4132.0,2.4200837]
[1760494429172,0.4377,4132.1,4132.0,2.42013552]
[1760494429373,0.4377,4132.1,4130.5,2.1621073]
[1760494429582,0.4377,4132.1,4131.9,2.42014091]